[Event "26th OIBM 2023"]
[Site "Gmund am Tegernsee"]
[Date "2023.10.29"]
[Round "2.1"]
[White "Lagarde, Maxime"]
[Black "Kurmangaliyeva, Liya"]
[Result "0-1"]
[ECO "A07"]
[WhiteElo "2626"]
[BlackElo "2236"]
[Annotator "TA"]
[PlyCount "94"]
[EventDate "2023.10.04"]
[EventType "swiss"]
[EventCountry "GER"]
[SourceTitle "playchess.com"]
[Source "ChessBase"]
[SourceQuality "1"]
[TimeControl "40/5400+30:1800+30"]

{[%evp 9,94,28,37,25,39,-4,25,15,27,22,39,32,39,15,19,13,12,0,0,0,0,-32,-20,-27,14,-14,-32,-21,-15,-12,-14,-27,-15,-57,-61,-59,-68,-58,-44,-57,13,7,56,0,0,-185,-198,-200,-199,-532,-535,-530,-530,-608,0,-281,-255,-262,-256,-244,-247,-241,-231,-227,-213,-195,-180,-235,-206,-447,-446,-837,-829,-758,-720,-1008,-867,-1132,-812,-12837,-12831,-4608,-1333,-12820,-2214,-12844,-12844]} 1. g3 {[%emt 0:00:02]} d5 {[%emt 0:01:32]} 2. Nf3 {[%emt 0:00:17]} b6 {[%emt 0:00:41]} 3. c4 {[%emt 0:00:23]} dxc4 {[%emt 0:00:56]} 4. Na3 {[%emt 0:00:05][%cal Bb1a3,Ba3c4,Bc4e5][%mdl 32]} Bb7 {[%emt 0:01:17]} 5. Bg2 {[%emt 0:00:08]} e6 {[%emt 0:04:36]} 6. Nxc4 {[%emt 0:00:28] A07: Réti Opening: New York and Capablanca Systems.} Nd7 {[%emt 0:00:53]} 7. Qa4 {[%emt 0:25:49]} Ngf6 {[%emt 0:18:23]} (7... a6 $5 {[%cal Rb6b5]} 8. Qd1 b5 $11) 8. Nce5 {[%emt 0:02:12][%cal Oe5f7] White has an edge.} Qc8 {[%emt 0:01:36]} 9. d4 {[%emt 0:01:46]} Bd6 {[%emt 0:08:21]} 10. O-O {[%emt 0:06:32]} O-O {[%emt 0:01:54]} 11. Bf4 {[%emt 0:06:08]} Bxe5 {[%emt 0:19:19] [#]} 12. dxe5 $146 {[%emt 0:00:25]} ({Predecessor:} 12. Nxe5 Bxg2 13. Kxg2 Nxe5 14. Bxe5 Nd7 15. Bf4 Re8 {½-½ Fancsy,I (2365)-Proehl,H (2300) Budapest FS05 GM 1996 (1)}) 12... Nd5 {[%emt 0:02:54]} 13. Bd2 {[%emt 0:09:17]} c5 {[%emt 0:07:16]} 14. Qh4 {[%emt 0:02:55]} Qc7 {[%emt 0:02:54]} 15. Qh5 {[%emt 0:02:49]} (15. Ng5 h6 16. Nf3 Nxe5 $17) 15... Ne7 {[%emt 0:04:42]} 16. Rac1 {[%emt 0:00:14]} Be4 {[%emt 0:02:20]} 17. b4 {[%emt 0:06:14]} (17. Ng5 {looks sharper.} Bg6 18. Qh4 Nf5 19. Qa4) 17... Rac8 {[%emt 0:06:20]} 18. bxc5 {[%emt 0:04:36]} bxc5 {[%emt 0:00:09]} 19. Rfd1 {[%emt 0:02:47]} Nd5 {[%emt 0:02:06]} 20. Bf4 {[%emt 0:05:22]} c4 {[%emt 0:01:46]} 21. Rd4 {[%emt 0:01:38]} (21. Ng5 {is more complex.} Bg6 22. Qh3 Bf5 23. Qh4) 21... Bg6 {[%emt 0:00:22]} 22. Qh4 {[%emt 0:02:56][%cal Od4d5]} N7b6 {[%emt 0:03:47]} 23. Bg5 {[%emt 0:03:27]} Rfe8 {[%emt 0:01:26]} (23... h6 24. Bxh6 Rfe8 25. Bd2 $16) 24. a3 {[%emt 0:06:48]} Ne7 {[%emt 0:01:05]} (24... h6 25. Bxh6 Qc5 26. e4 $11) ({Black should try} 24... Qc5 $15 25. e4 Nc7) 25. Bxe7 $1 $11 {[%emt 0:01:32]} Rxe7 {[%emt 0:01:22]} (25... Qxe7 $11 26. Qxe7 Rxe7) 26. Rd6 {[%emt 0:01:39]} (26. a4 $1 $14 a5 27. Rd6) 26... Rd7 $36 {[%emt 0:01:38][%mdl 2048] Black is pushing.} 27. a4 $2 {[%emt 0:03:04]} Rxd6 $19 {[%emt 0:02:25]} (27... Nxa4 28. Rxc4 Qxc4 29. Rxd7 Qxh4 30. Nxh4 $11) 28. exd6 {[%emt 0:00:05]} Qxd6 {[%emt 0:00:36]} 29. Bh3 $2 {[%emt 0:02:11]} (29. Qd4 {is tougher.} Qc5 30. Qxc5 Rxc5 31. Nd2) 29... Qa3 {[%emt 0:00:43]} (29... Nxa4 30. Rxc4 Rxc4 31. Qxc4 $17) 30. Rd1 {[%emt 0:00:06][%cal Oa4a5]} h6 {[%emt 0:00:55]} ({Weaker is} 30... Qxa4 31. Rd8+ $18) (30... Nxa4 $2 31. Ne5 $19) 31. Ne5 {[%emt 0:00:21]} Bc2 {[%emt 0:01:01]} (31... Qxa4 $2 32. Qd4 Qc2 33. Nxg6 Qxg6 34. Bg2 $19) ({Better is} 31... c3 $19 32. Nxg6 c2) 32. Qf4 $2 {[%emt 0:01:07][%mdl 8192]} Qe7 {[%emt 0:00:23]} (32... Bxd1 $2 33. Qxf7+ Kh8 34. Bxe6 Bxe2 35. Kg2 $19) 33. Rd4 {[%emt 0:00:55]} Bxa4 {[%emt 0:00:46]} 34. Nxc4 {[%emt 0:00:20]} g5 {[%emt 0:00:30]} 35. Qe4 {[%emt 0:01:40] [#] Black must now prevent Nxb6.} Nxc4 {[%emt 0:00:11]} 36. Rxc4 {[%emt 0:00:04]} Rxc4 {[%emt 0:00:03]} 37. Qxc4 {[%emt 0:00:03][%mdl 4096] Endgame KQB-KQB} Qd7 {[%emt 0:00:08]} 38. Bf1 {[%emt 0:01:20] [#]} (38. Bg4 $142) 38... Bc6 $1 {[%emt 0:00:08] Strongly threatening ...a5.} 39. e4 $2 {[%emt 0:00:45]} (39. Qc3) 39... a5 {[%emt 0:00:43] Black is clearly winning.} 40. Bd3 {[%emt 0:00:56]} (40. Qc1 $142 Bxe4 41. h4) 40... a4 {[%emt 0:00:35]} 41. Qc3 {[%emt 0:30:26]} Bb5 {[%emt 0:31:24]} 42. Bxb5 {[%emt 0:01:02]} Qxb5 {[%emt 0:00:05] KQ-KQ} 43. Kg2 {[%emt 0:00:23]} Qb1 {[%emt 0:00:00]} 44. Qe3 {[%emt 0:00:00]} Qb4 {[%emt 0:00:00]} 45. h4 {[%emt 0:00:00]} a3 {[%emt 0:00:00]} 46. hxg5 {[%emt 0:00:00]} a2 {[%emt 0:00:00]} 47. gxh6 {[%emt 0:00:00]} a1=Q {[%emt 0:00:00] Weighted Error Value: White=0.97/Black=0.24 (precise)} (47... a1=B $2 {loses.} 48. Kh3 $19) 0-1

[Event "26th OIBM 2023"]
[Site "Gmund am Tegernsee"]
[Date "2023.10.29"]
[Round "2.2"]
[White "Wacker, Peter"]
[Black "Gopal G.N."]
[Result "1/2-1/2"]
[ECO "A45"]
[WhiteElo "2234"]
[BlackElo "2573"]
[Annotator "TA"]
[PlyCount "88"]
[EventDate "2023.10.04"]
[EventType "swiss"]
[EventCountry "GER"]
[SourceTitle "playchess.com"]
[Source "ChessBase"]
[SourceQuality "1"]
[TimeControl "40/5400+30:1800+30"]

{[%evp 9,88,0,0,0,14,-18,34,-21,8,16,12,0,0,-21,5,6,21,-15,36,25,29,18,33,14,29,12,27,27,22,18,18,32,20,29,33,4,18,0,0,0,6,0,58,0,0,-22,0,-5,0,-5,0,0,0,0,0,0,0,0,16,15,46,57,81,81,81,81,81,81,81,81,81,81,81,0,56,0,81,0,64,0,74]} 1. d4 {[%emt 0:00:06]} Nf6 {[%emt 0:00:07]} 2. Bf4 {[%emt 0:00:07]} g6 {[%emt 0:02:18]} 3. Nc3 {[%emt 0:00:45]} d5 {[%emt 0:00:52]} 4. e3 {[%emt 0:01:17]} Bg7 {[%emt 0:02:56]} 5. h4 {[%emt 0:01:05]} h5 {[%emt 0:02:27]} 6. Nf3 {[%emt 1:30:10] A45: Trompowsky Attack.} O-O {[%emt 1:24:50][%cal Oc7c5]} 7. Be2 {[%emt 0:00:00]} Bg4 {[%emt 0:00:00]} (7... c6 $11) 8. O-O {[%emt 0:00:00]} (8. Ne5 $14) 8... Bxf3 {[%emt 0:00:00]} 9. Bxf3 {[%emt 0:00:00]} c6 {[%emt 0:00:00]} 10. Qe2 {[%emt 0:00:00]} Nbd7 {[%emt 0:00:00] [#]} 11. Rfd1 $146 {[%emt 0:00:00]} ({Predecessor:} 11. Rad1 Qb6 12. b3 Qa5 13. Qd2 Qa3 14. Qc1 Qb4 15. Qb2 Rfe8 16. a3 Qb6 17. Na4 {½-½ Erdene,G (2278)-Chinguun,S (2298) MGL-ch Ulaanbaatar 2023 (6)}) 11... e6 {[%emt 0:00:00]} 12. g3 {[%emt 0:00:00]} Qb6 {[%emt 0:00:00]} 13. Rab1 {[%emt 0:00:00]} Rad8 {[%emt 0:00:00]} (13... Rfe8 $11) 14. b4 $14 {[%emt 0:00:00]} a6 {[%emt 0:00:00]} 15. Na4 {[%emt 0:00:00]} Qa7 {[%emt 0:00:00]} 16. Nc5 {[%emt 0:00:00]} Rfe8 {[%emt 0:00:00]} 17. Nxd7 {[%emt 0:00:00]} Nxd7 {[%emt 0:00:00][%cal Bf6d7,Bd7b6,Bb6c4][%mdl 32]} 18. c4 {[%emt 0:00:00]} Nb6 {[%emt 0:00:00]} 19. Bc7 {[%emt 0:00:00]} Nxc4 {[%emt 0:00:00]} 20. Bxd8 {[%emt 0:00:00]} Rxd8 {[%emt 0:00:00]} 21. a4 {[%emt 0:00:00]} b5 {[%emt 0:00:00]} 22. Qa2 {[%emt 0:00:00]} Qe7 {[%emt 0:00:00]} 23. axb5 {[%emt 0:00:00]} axb5 {[%emt 0:00:00]} 24. Kg2 {[%emt 0:00:00]} e5 {[%emt 0:00:00]} 25. dxe5 {[%emt 0:00:00]} Bxe5 {[%emt 0:00:00]} ({Black should play} 25... Qxe5 $11 26. Be2 Re8) 26. Rb3 {[%emt 0:00:00]} (26. e4 $1 $14) 26... Kg7 {[%emt 0:00:00]} 27. Qc2 {[%emt 0:00:00] White is weak on the dark squares} Bf6 {[%emt 0:00:22][%mdl 1024] Black has compensation.} 28. Kg1 {[%emt 0:00:00]} Re8 {[%emt 0:02:36]} 29. Bg2 {[%emt 0:00:00][%cal Bf3g2,Bg2f1,Bf1e2][%mdl 32]} Qa7 {[%emt 0:03:51]} 30. e4 {[%emt 0:00:00]} d4 {[%emt 0:00:15]} 31. Bf1 {[%emt 0:00:00]} Ne5 {[%emt 0:00:43]} 32. Kg2 {[%emt 0:00:42]} Rd8 {[%emt 0:01:48]} 33. Be2 {[%emt 0:00:53]} Kg8 {[%emt 0:01:18]} 34. Rd2 {[%emt 0:02:03]} Qe7 {[%emt 0:01:33]} 35. f4 $1 {[%emt 0:02:57]} Nc4 {[%emt 0:00:40][%mdl 64] [#] Deflection} 36. Bxc4 {[%emt 0:00:05]} bxc4 {[%emt 0:00:00]} 37. Qxc4 {[%emt 0:00:11] e5 is the strong threat.} Qxe4+ {[%emt 0:00:02]} 38. Rf3 {[%emt 0:00:36]} Re8 {[%emt 0:02:04]} 39. Rc2 {[%emt 0:02:37]} Re6 {[%emt 0:00:39]} 40. Qd3 {[%emt 0:02:13]} Qd5 {[%emt 0:00:35] [#] ...Re3 would be deadly.} 41. Qc4 {[%emt 0:07:13] Threatens to win with Qxd5.} Qe4 {[%emt 0:12:22]} 42. Qd3 {[%emt 0:00:07] Hoping for Qxe4.} Qd5 {[%emt 0:01:28] And now ...Re3 would win.} 43. Qc4 {[%emt 0:04:11]} Qe4 {[%emt 0:04:56]} 44. Qd3 {[%emt 0:00:53] Black must now prevent Qxe4.} Qd5 $1 {[%emt 0:13:48] Weighted Error Value: White=0.18 (very precise) /Black=0.13 (very precise)} 1/2-1/2

[Event "26th OIBM 2023"]
[Site "Gmund am Tegernsee"]
[Date "2023.10.29"]
[Round "2.3"]
[White "Mastrovasilis, Dimitrios"]
[Black "Hedke, Fred"]
[Result "1-0"]
[ECO "B06"]
[WhiteElo "2573"]
[BlackElo "2231"]
[Annotator "TA"]
[PlyCount "83"]
[EventDate "2023.10.04"]
[EventType "swiss"]
[EventCountry "GER"]
[SourceTitle "playchess.com"]
[Source "ChessBase"]
[SourceQuality "1"]
[TimeControl "40/5400+30:1800+30"]

{[%evp 9,83,29,106,10,21,8,43,42,69,56,68,70,70,72,74,49,73,76,77,73,76,64,108,105,101,108,112,115,120,108,125,127,175,170,197,191,203,181,375,350,350,318,521,527,624,623,551,427,449,448,414,429,437,433,760,662,647,596,1043,952,953,1014,1014,0,0,0,1012,954,876,811,721,599,2575,2190,5060,4956]} 1. e4 {[%emt 0:00:08]} g6 {[%emt 0:00:38]} 2. d4 {[%emt 0:00:15]} Bg7 {[%emt 0:00:20]} 3. Nf3 {[%emt 0:01:33]} d6 {[%emt 0:00:42]} 4. Bc4 {[%emt 0:01:07]} Nf6 {[%emt 0:01:10]} 5. Qe2 {[%emt 0:00:33]} Bg4 {[%emt 0:01:47] [#]} (5... c6 $11) 6. Nbd2 {[%emt 0:01:22] B06: Modern Defence.} (6. e5 $1 $16 {[%cal Re5f6]}) 6... Nc6 $11 {[%emt 0:01:36]} 7. c3 {[%emt 0:01:39]} O-O {[%emt 0:04:42]} (7... e5 $5 {[%cal Re5d4]}) 8. h3 {[%emt 0:01:32] White is slightly better.} Bxf3 {[%emt 0:01:42]} 9. Nxf3 {[%emt 0:00:45]} e5 {[%emt 0:00:48]} 10. dxe5 {[%emt 0:26:21]} Nxe5 {[%emt 0:03:32]} 11. Nxe5 {[%emt 0:01:21]} dxe5 {[%emt 0:00:10]} 12. Bg5 {[%emt 0:03:50]} c6 {[%emt 0:03:38]} 13. O-O {[%emt 0:05:54]} h6 {[%emt 0:10:06] [#]} 14. Rad1 $146 {[%emt 0:03:22][%cal Ba1d1,Bd1d7,Bd7e7][%mdl 32]} ({Predecessor:} 14. Bh4 Qb6 15. Rad1 Qc7 16. Qf3 Qe7 17. Rd3 Rad8 18. Rfd1 a5 19. Bxf6 Qxf6 20. Rxd8 Rxd8 21. Rxd8+ Qxd8 22. Qxf7+ {1-0 Murzin,V (2586)-Nogerbek,K (2487) Wch Blitz Almaty 2022 (20)}) 14... Qe7 {[%emt 0:01:17]} 15. Bxf6 {[%emt 0:02:16]} Bxf6 {[%emt 0:13:54] Black is weak on the light squares} 16. Qg4 {[%emt 0:02:34][%cal Od1d7]} Kg7 {[%emt 0:06:51]} 17. Rd7 {[%emt 0:01:36]} h5 {[%emt 0:01:20]} 18. Rxe7 {[%emt 0:06:45]} hxg4 {[%emt 0:00:20]} 19. Rxb7 {[%emt 0:00:11]} gxh3 {[%emt 0:08:48]} 20. Rd1 $36 {[%emt 0:01:59][%mdl 2048] White is in control. White has more active pieces.} (20. gxh3 Rab8 21. Rxa7 Rxb2 $14) 20... Bd8 {[%emt 0:03:14]} (20... a5 $16 21. gxh3 Bh4) 21. gxh3 {[%emt 0:05:34]} Bb6 {[%emt 0:02:36]} 22. a4 {[%emt 0:02:05][%cal Ba2a4,Ba4a5][%mdl 32]} Kh6 {[%emt 0:03:27]} 23. b4 {[%emt 0:09:00][%cal Oa4a5] [#] Hoping for a5!} (23. Bxf7 Rab8 24. Rxb8 Rxb8) (23. Rxf7 Rxf7 24. Bxf7 Kg7) 23... f5 $2 {[%emt 0:02:22]} (23... Rab8 {was called for.} 24. Rdd7 (24. Rxf7 Rxf7 25. Bxf7 Rd8 $16) 24... a5 25. Bxf7 axb4) 24. a5 $18 {[%emt 0:01:05]} Bd8 {[%emt 0:00:18]} 25. Rd6 {[%emt 0:02:07]} c5 $2 {[%emt 0:00:55]} (25... Bh4 {was worth a try.} 26. Bf7 Kg5 27. Rxg6+ Kf4 28. exf5 Kf3) 26. Bf7 {[%emt 0:01:45]} Kg5 {[%emt 0:02:28]} 27. Rxg6+ {[%emt 0:04:29]} Kf4 {[%emt 0:00:26]} 28. exf5 {[%emt 0:00:33]} Kxf5 {[%emt 0:01:50][%cal Of8f7]} 29. Rg4 {[%emt 0:01:21]} ({And not} 29. bxc5 Rxf7 30. Rxf7+ Kxg6 $17) 29... cxb4 {[%emt 0:01:02]} 30. cxb4 {[%emt 0:00:40]} Bg5 {[%emt 0:02:25]} 31. Bd5 {[%emt 0:02:15] Threatens to win with Be4+.} Kf6 {[%emt 0:05:37]} (31... Bf4 $142 32. a6 Rad8) 32. h4 {[%emt 0:01:29]} Bf4 {[%emt 0:00:27]} 33. Rgg7 {[%emt 0:03:19]} Rad8 {[%emt 0:03:19]} 34. Be4 {[%emt 0:00:16][%csl Ge4][%cal Rg7g6]} Rg8 {[%emt 0:00:47]} 35. Rbf7+ {[%emt 0:01:25]} Ke6 {[%emt 0:00:13]} 36. Re7+ {[%emt 0:01:00]} Kf6 {[%emt 0:00:28]} 37. Ref7+ {[%emt 0:00:50]} Ke6 {[%emt 0:00:08]} 38. Rxa7 {[%emt 0:00:49] White threatens Ra6+ and mate. White is clearly winning.} Rxg7+ {[%emt 0:00:25]} 39. Rxg7 {[%emt 0:00:07]} Rd4 {[%emt 0:00:44]} 40. Bc6 {[%emt 0:00:52] Black must now prevent a6.} Kd6 {[%emt 0:04:01]} 41. Rg6+ {[%emt 0:31:38]} Kc7 {[%emt 0:30:27]} 42. b5 {[%emt 0:00:35] Weighted Error Value: White=0.35/Black=0.32} 1-0

[Event "26th OIBM 2023"]
[Site "Gmund am Tegernsee"]
[Date "2023.10.29"]
[Round "2.4"]
[White "Smits, Mark"]
[Black "Bauer, Christian"]
[Result "0-1"]
[ECO "B33"]
[WhiteElo "2231"]
[BlackElo "2552"]
[Annotator "TA"]
[PlyCount "72"]
[EventDate "2023.10.04"]
[EventType "swiss"]
[EventCountry "GER"]
[SourceTitle "playchess.com"]
[Source "ChessBase"]
[SourceQuality "1"]
[TimeControl "40/5400+30:1800+30"]

{[%evp 13,72,33,60,66,68,59,72,56,74,59,87,-33,56,32,47,34,82,84,101,42,35,62,123,38,147,71,70,72,58,27,32,-10,-6,-22,-23,-43,4,-102,-108,-95,-103,-119,-99,-295,-284,-226,0,-267,-250,-271,-39,-127,-158,-134,-133,-397,-397,-359,-369,-1347,-1341]} 1. e4 {[%emt 0:00:08]} c5 {[%emt 0:00:08]} 2. Nf3 {[%emt 0:00:19]} Nc6 {[%emt 0:00:06]} 3. d4 {[%emt 0:00:07]} cxd4 {[%emt 0:00:06]} 4. Nxd4 {[%emt 0:00:04]} Qb6 {[%emt 0:00:07]} 5. Nb3 {[%emt 0:00:25]} Nf6 {[%emt 0:00:06]} 6. Nc3 {[%emt 0:00:11]} e6 {[%emt 0:00:07]} 7. Qe2 {[%emt 0:04:54] 7.Bd3 gains popularity.} d6 {[%emt 0:03:33]} 8. g4 {[%emt 0:03:58][%cal Bg2g4,Bg4g5][%mdl 32] B33: Sicilian: Pelikan and Sveshnikov Variations.} a6 {[%emt 0:00:46]} 9. g5 {[%emt 0:00:28]} Nd7 {[%emt 0:00:06]} 10. Be3 {[%emt 0:04:55] White is better.} Qc7 {[%emt 0:00:05]} 11. O-O-O {[%emt 0:00:32]} b5 {[%emt 0:00:03]} 12. Bg2 {[%emt 0:07:05]} (12. Kb1 $16) 12... Nde5 {[%emt 0:12:27]} (12... b4 $15 13. Na4 Nce5) 13. f4 {[%emt 0:17:32]} Nc4 {[%emt 0:01:06] [#]} 14. Rhe1 $146 {[%emt 0:02:42]} (14. Bf2 {simplifies} Bd7 15. Nd2 N6a5 16. Nxc4 Nxc4 17. b3) ({Predecessor:} 14. Bf2 Rb8 15. Rhe1 Be7 16. Kb1 N6a5 17. Qh5 b4 18. Ne2 e5 19. f5 g6 20. Qh6 {0-1 Soltanici,R (2385)-Vedmediuc,S (2468) MDA-ch Kishinev 2012 (10)}) 14... Bd7 {[%emt 0:06:48] [#]} (14... Nxe3 $14 15. Qxe3 b4) 15. e5 $1 $16 {[%emt 0:07:49]} O-O-O {[%emt 0:35:11]} (15... Nxe3 16. Qxe3) 16. a4 {[%emt 0:16:04]} (16. exd6 $16 Bxd6 17. Kb1) 16... Nb4 $14 {[%emt 0:00:39]} 17. axb5 {[%emt 0:05:13]} axb5 {[%emt 0:00:06] [#]} (17... Bxb5 $14 18. Nxb5 axb5) 18. Bd4 {[%emt 0:08:54]} ({Better is} 18. exd6 $1 $16 Bxd6 19. Kb1) 18... dxe5 {[%emt 0:07:13]} (18... d5 $1 $14) 19. fxe5 {[%emt 0:00:12]} (19. Bxe5 $142 Nxe5 20. fxe5 (20. Qxe5 Qxe5 21. Rxe5 Bc6 $11)) 19... Be7 {[%emt 0:00:54]} 20. Ne4 {[%emt 0:01:46]} Bc6 {[%emt 0:04:06]} 21. c3 {[%emt 0:00:48]} (21. Kb1 $5) 21... Nd5 {[%emt 0:03:06]} (21... Nxe5 $2 22. Bxe5 Qxe5 23. cxb4 Rxd1+ 24. Rxd1 $18) 22. Kc2 {[%emt 0:04:10]} Nf4 {[%emt 0:06:15]} 23. Qf2 {[%emt 0:00:25]} Nxg2 {[%emt 0:00:43]} 24. Qxg2 {[%emt 0:00:06]} h6 {[%emt 0:01:58]} (24... Rd5 $15) 25. Ra1 {[%emt 0:03:16] [#]} (25. g6 $11 {was the only way to keep the balance.}) 25... hxg5 $1 $17 {[%emt 0:01:09] White must now prevent ...Qb7. Black is more active.} (25... Nxe5 $2 26. Ra7 Bb7 27. Bxe5 $18) 26. Ra7 {[%emt 0:00:42] Prevents Qb7} Bb7 {[%emt 0:00:16] ...Rh4 would be deadly. The board is on fire.} 27. Qf2 {[%emt 0:03:28] Strongly threatening Nbc5.} Rxd4 $1 {[%emt 0:06:34][%mdl 64] Deflection} (27... Nxe5 $6 28. Rxb7 Qxb7 29. Bxe5 $14) 28. Qxd4 {[%emt 0:00:58]} (28. Rxb7 $17 {was forced.} Kxb7 29. cxd4) 28... Rxh2+ $19 {[%emt 0:00:55]} ({Weaker is} 28... Nxe5 29. Rxb7 Kxb7 30. Nec5+ Kc8 31. Rxe5 $11 (31. Qxe5 Rxh2+ 32. Kb1 Qxe5 $17)) 29. Kc1 {[%emt 0:00:23] And now Nbc5 would win.} Rh4 $2 {[%emt 0:03:29]} (29... Rxb2 $2 30. Nd6+ (30. Na5 Rd2 $15) 30... Bxd6 31. exd6 Qxd6 32. Qxd6 Nxd6 33. Kxb2 $18) ({And not} 29... Qxe5 30. Qxe5 Nxe5 31. Nec5 Bxc5 32. Nxc5 $17) (29... Nxe5 $19 30. Nbc5 Bxc5 31. Nxc5 Nf3 32. Rxb7 Qxb7 33. Nxb7 Nxd4 34. Nd6+ Kc7 35. Nxf7 Nb3+ 36. Kb1 Nd2+ 37. Kc1 g4) 30. Qf2 {[%emt 0:01:24][%mdl 8192]} (30. Nbc5 $11 Rxe4 31. Nxe4) 30... Rf4 {[%emt 0:02:12]} 31. Qg1 {[%emt 0:00:54] Hoping for Nec5.} Kb8 $2 {[%emt 0:00:28]} (31... Nxe5 $19 32. Nec5 Nf3) 32. Ned2 {[%emt 0:02:44]} ({White has to play} 32. Nd6 $1 $15 Bxd6 33. exd6 Nxd6 34. Rd1) 32... Nb6 $36 {[%emt 0:02:46][%mdl 2048] Keeping White busy.} (32... Nxe5 $2 33. Rxe5 Qxe5 34. Qb6 $18) 33. Ra5 {[%emt 0:01:11]} b4 {[%emt 0:00:01]} 34. Nc5 $2 {[%emt 0:00:33][%mdl 8192]} (34. Kb1 $17) 34... bxc3 $19 {[%emt 0:00:31]} 35. bxc3 {[%emt 0:00:05]} Na4 $1 {[%emt 0:00:50][%mdl 64] Deflection} 36. Nd7+ $2 {[%emt 0:02:06]} (36. Ndb3 Nxc3 37. Kb2 Bxc5 {[%mdl 64] Remove Defender} 38. Qxc5 Na4+ 39. Rxa4 Rxa4 40. Rc1 Qxc5 41. Nxc5) 36... Qxd7 {[%emt 0:00:37] Beautiful play by Bauer!   Weighted Error Value: White=0.73/Black=0.28 (precise)} 0-1